bitfinex/quotes_BTCUSD_20251116
["timestamp","ask_amount","ask_price","bid_price","bid_amount"]
[1763283986848,0.20809337,96111.0,96108.0,0.2080991]
[1763283987458,0.20809551,96110.0,96107.0,0.20810125]
[1763283987657,0.20809337,96111.0,96108.0,0.20809904]
[1763283988496,0.08336,96115.0,96111.0,0.20809208]
[1763283988778,0.29144412,96115.0,96112.0,0.20809028]
[1763283988976,0.08336,96115.0,96114.0,0.20808623]
[1763283989882,0.08340492,96115.0,96114.0,0.20808623]
[1763283991278,0.08340492,96115.0,96114.0,0.20908623]
[1763283991489,0.08340492,96115.0,96114.0,0.21008623]
[1763283992886,0.22012905,96146.0,96129.0,0.09362468]
[1763283992887,0.21843323,96140.0,96129.0,0.09362468]
[1763283993096,0.08336,96132.0,96131.0,0.20804943]
[1763283993299,0.20805047,96131.0,96129.0,0.09362468]
[1763283993541,0.29140812,96132.0,96129.0,0.09362468]
[1763283993770,0.20805064,96131.0,96129.0,0.09362468]
[1763283993950,0.08336,96132.0,96129.0,0.09362468]
[1763283994126,0.08336,96132.0,96129.0,0.30167832]
[1763283994533,0.08336,96132.0,96129.0,0.09362468]
[1763283994740,0.08336,96132.0,96130.0,0.20805114]
[1763283994944,0.08336,96132.0,96131.0,0.20804943]
[1763283997202,4.502e-05,96140.0,96131.0,0.20804943]
[1763283997564,4.502e-05,96140.0,96139.0,0.20803212]
[1763283998525,4.502e-05,96140.0,96139.0,0.25145086]
[1763283998731,0.08332,96169.0,96168.0,0.09362468]
[1763283998989,0.25212429,96180.0,96179.0,0.2079456]
[1763283998990,0.0002,96180.0,96179.0,0.2079456]
[1763283999220,0.00032177,96180.0,96168.0,0.09362468]
[1763283999403,0.24184889,96180.0,96170.0,0.2079637]
[1763283999633,0.24184889,96180.0,96172.0,0.20795893]
[1763283999941,0.44979237,96180.0,96172.0,0.20795893]
[1763284000156,0.20794834,96178.0,96173.0,0.20795857]
[1763284000374,0.24184889,96180.0,96176.0,0.2079512]
[1763284000589,0.24184889,96180.0,96178.0,0.20794736]
[1763284001010,0.24184889,96180.0,96172.0,0.20796073]
[1763284001011,0.00032177,96180.0,96172.0,0.20796073]
[1763284001212,0.2079456,96179.0,96172.0,0.20796073]
[1763284001900,0.20794817,96178.0,96174.0,0.20795595]
[1763284002118,0.00032177,96180.0,96172.0,0.20796073]
[1763284002324,0.01931258,96179.0,96168.0,0.09362468]
[1763284002526,0.20796072,96173.0,96168.0,0.09362468]
[1763284002734,0.20796332,96171.0,96168.0,0.09362468]
[1763284002940,0.20796072,96173.0,96168.0,0.09362468]
[1763284003144,0.207964,96171.0,96168.0,0.09362468]
[1763284003343,0.2079579,96174.0,96172.0,0.001]
[1763284003677,0.01930219,96173.0,96172.0,0.001]
[1763284003952,0.20796636,96170.0,96168.0,0.09462468]
[1763284004138,0.20796636,96170.0,96168.0,0.09562468]
[1763284004376,0.00032177,96180.0,96168.0,0.09562468]
[1763284004578,0.01929976,96179.0,96168.0,0.24062468]
[1763284004747,0.20796547,96170.0,96168.0,0.24062468]
[1763284004950,0.01929976,96169.0,96168.0,0.24062468]
[1763284005125,0.01929976,96169.0,96168.0,0.23962468]
[1763284005538,0.01929976,96169.0,96168.0,0.44759406]
[1763284005928,0.01929976,96169.0,96168.0,0.44859406]
[1763284006551,0.01929976,96169.0,96168.0,0.24162468]
[1763284006889,0.01929976,96169.0,96168.0,0.24062468]
[1763284007455,0.01929976,96169.0,96168.0,0.24162468]
[1763284007658,0.01929976,96169.0,96168.0,0.44959406]
[1763284007838,0.01929976,96169.0,96168.0,0.24162468]
[1763284010470,0.01929976,96169.0,96168.0,0.09462468]
[1763284013489,0.03455976,96169.0,96168.0,0.09462468]
[1763284014564,0.03455976,96169.0,96168.0,0.09362468]
[1763284015829,0.03455976,96169.0,96168.0,0.09462468]
[1763284020723,0.24252698,96169.0,96168.0,0.09462468]
[1763284026448,0.25226121,96169.0,96168.0,0.09462468]
[1763284029260,0.24252698,96169.0,96168.0,0.09462468]
[1763284029978,0.01929976,96169.0,96168.0,0.09462468]
[1763284030116,0.20795,96177.0,96168.0,0.09462468]
[1763284030315,0.20795847,96174.0,96170.0,0.20796418]
[1763284030518,0.20795,96177.0,96171.0,0.2079609]
[1763284030755,0.01947471,96176.0,96172.0,0.20796043]
[1763284030941,0.20795,96177.0,96173.0,0.20795849]
[1763284031742,0.20795253,96176.0,96171.0,0.2079609]
[1763284031919,0.20794763,96179.0,96168.0,0.09362468]
[1763284032124,0.1210176,96180.0,96173.0,0.001]
[1763284032444,0.20795391,96176.0,96173.0,0.001]
[1763284032640,0.20795391,96176.0,96173.0,0.20795852]
[1763284032877,0.20795391,96176.0,96172.0,0.20795977]
[1763284033209,0.20795039,96177.0,96172.0,0.20795977]
[1763284033358,0.20794784,96178.0,96174.0,0.20795604]
[1763284033568,0.20794992,96179.0,96171.0,0.20796289]
[1763284033776,0.20826737,96180.0,96168.0,0.09362468]
[1763284033979,0.2079456,96179.0,96171.0,0.20896181]
[1763284034234,0.32896192,96180.0,96175.0,0.20795419]
[1763284034432,0.00032177,96180.0,96174.0,0.2079561]
[1763284034588,0.20794572,96179.0,96174.0,0.2079561]
[1763284034790,0.20826551,96180.0,96174.0,0.2079561]
[1763284035165,0.20795385,96176.0,96172.0,0.20796052]
[1763284035315,0.20794688,96179.0,96173.0,0.20795797]
[1763284035525,0.20826651,96180.0,96175.0,0.20795338]
[1763284036258,0.00032177,96180.0,96177.0,0.20794885]
[1763284036843,0.20794757,96179.0,96175.0,0.20795415]
[1763284037246,0.00032177,96180.0,96176.0,0.20795208]
[1763284037481,0.00032177,96180.0,96172.0,0.20795973]
[1763284037623,0.20795857,96173.0,96172.0,0.001]
[1763284037818,0.20795493,96175.0,96172.0,0.001]
[1763284038076,0.20795493,96175.0,96171.0,0.20796272]
[1763284038282,0.20795699,96174.0,96170.0,0.20796452]
[1763284038881,0.20795911,96173.0,96170.0,0.20796452]
[1763284039111,0.20796678,96170.0,96168.0,0.09362468]
[1763284039336,0.20796722,96169.0,96168.0,0.09362468]
[1763284040250,0.22379722,96169.0,96168.0,0.09362468]
[1763284041122,0.24327756,96169.0,96168.0,0.09362468]
[1763284041536,0.24327756,96169.0,96168.0,0.09462468]
[1763284042942,0.56627756,96169.0,96168.0,0.001]
[1763284043748,0.58166722,96169.0,96168.0,0.001]
[1763284044094,0.20805159,96130.0,96129.0,0.09362468]
[1763284044460,0.20804967,96131.0,96129.0,0.09362468]
[1763284044652,0.20803861,96136.0,96129.0,0.09362468]
[1763284044859,0.20803929,96136.0,96131.0,0.20804921]
[1763284045356,0.20803929,96136.0,96132.0,0.20804692]
[1763284046371,0.20804077,96135.0,96131.0,0.00045023]
[1763284046574,0.20803929,96136.0,96131.0,0.00145023]
[1763284046575,0.20804726,96132.0,96131.0,0.00145023]
[1763284046980,0.20804328,96134.0,96131.0,0.00145023]
[1763284047186,0.20803929,96136.0,96131.0,0.20849931]
[1763284047519,0.20803929,96136.0,96132.0,0.001]
[1763284047728,0.20803929,96136.0,96133.0,0.20804484]
[1763284048025,0.20803046,96140.0,96135.0,0.20804067]
[1763284048279,0.20803212,96139.0,96131.0,0.00145023]
[1763284048485,0.20804303,96134.0,96131.0,0.00145023]
[1763284048971,0.20804303,96134.0,96131.0,0.21049955]
[1763284049107,0.12069583,96141.0,96131.0,0.21049955]
[1763284049108,0.20803219,96139.0,96135.0,0.20804065]
[1763284049345,0.20803897,96136.0,96131.0,0.00045023]
[1763284049572,0.20803897,96136.0,96133.0,0.001]
[1763284049988,0.08328,96140.0,96133.0,0.001]
[1763284050162,0.20803212,96139.0,96132.0,0.20804619]
[1763284050362,0.08328,96140.0,96135.0,0.20804073]
[1763284050567,0.08328,96140.0,96139.0,0.20803212]
[1763284052631,0.08328,96140.0,96139.0,0.20903212]
[1763284053262,0.08328,96140.0,96139.0,0.21003212]
[1763284053666,0.08328,96140.0,96139.0,0.20903212]
[1763284054118,0.08328,96140.0,96139.0,0.21003212]
[1763284057553,0.08328,96140.0,96139.0,0.002]
[1763284057751,0.29130995,96140.0,96139.0,0.002]
[1763284057949,0.08328,96140.0,96139.0,0.21003212]
[1763284059732,0.08332,96152.0,96151.0,0.20800505]
[1763284060864,0.08332,96152.0,96151.0,0.20900505]
[1763284061068,0.17154319,96180.0,96171.0,0.20796253]
[1763284061069,0.08332,96172.0,96171.0,0.20796253]
[1763284061723,0.08332,96172.0,96168.0,0.30678547]
[1763284061918,0.08332,96172.0,96170.0,0.20796362]
[1763284062137,0.08332,96172.0,96171.0,0.20796289]
[1763284062328,0.08345499,96172.0,96170.0,0.20796362]
[1763284062538,0.08345499,96172.0,96171.0,0.20896289]
[1763284062753,0.08345499,96172.0,96171.0,0.20796289]
[1763284062896,0.08345499,96172.0,96170.0,0.2079644]
[1763284063101,0.08345499,96172.0,96171.0,0.20796289]
[1763284063443,0.08345499,96172.0,96171.0,0.20896289]
[1763284063801,0.08345499,96172.0,96169.0,0.20796533]
[1763284064006,0.08345499,96172.0,96170.0,0.002]
[1763284064250,0.20796505,96171.0,96170.0,0.001]
[1763284065602,0.20796722,96169.0,96168.0,0.09881783]
[1763284067170,0.20796722,96169.0,96168.0,0.09981783]
[1763284067373,0.20796722,96169.0,96168.0,0.10081783]
[1763284067532,0.20796722,96169.0,96168.0,0.09981783]
[1763284068347,0.20796722,96169.0,96168.0,0.09881783]
[1763284068560,0.20796722,96169.0,96168.0,0.09981783]
[1763284076743,0.22318722,96169.0,96168.0,0.09981783]
[1763284077316,0.20796722,96169.0,96168.0,0.09981783]
[1763284081616,0.20796505,96171.0,96168.0,0.09981783]
[1763284081617,0.20796312,96171.0,96168.0,0.09981783]
[1763284081826,0.29141604,96172.0,96168.0,0.09981783]
[1763284082018,0.2079642,96171.0,96168.0,0.09981783]
[1763284082639,0.20796674,96170.0,96168.0,0.09981783]
[1763284083402,0.29141604,96172.0,96168.0,0.09981783]
[1763284083403,0.08345499,96172.0,96168.0,0.09981783]
[1763284083603,0.08345499,96172.0,96171.0,0.20796289]
[1763284084943,0.08345499,96172.0,96171.0,0.20896289]
[1763284085534,0.29141572,96172.0,96171.0,0.001]
[1763284086505,0.29141572,96172.0,96171.0,0.002]
[1763284086715,0.08345499,96172.0,96171.0,0.002]
[1763284087533,0.29141572,96172.0,96171.0,0.002]
[1763284088090,0.31841572,96172.0,96171.0,0.002]
[1763284088465,0.30282572,96172.0,96171.0,0.002]
[1763284088645,0.31841572,96172.0,96171.0,0.002]
[1763284089241,0.31841572,96172.0,96171.0,0.001]
[1763284089844,0.20796722,96169.0,96168.0,0.09881783]
[1763284090958,0.20796722,96169.0,96168.0,0.09981783]
[1763284093995,0.22355722,96169.0,96168.0,0.09981783]
[1763284094699,0.20796722,96169.0,96168.0,0.09981783]
[1763284096378,0.22396722,96169.0,96168.0,0.09981783]
[1763284098564,0.09486499,96172.0,96168.0,0.09981783]
[1763284098794,0.20796703,96170.0,96168.0,0.09981783]
[1763284098973,0.3028276,96172.0,96168.0,0.09981783]
[1763284099292,0.20796722,96169.0,96168.0,0.09881783]
[1763284099753,0.20796534,96170.0,96168.0,0.09981783]
[1763284099876,0.3028276,96172.0,96168.0,0.09981783]
[1763284100079,0.20796349,96171.0,96168.0,0.09881783]
[1763284100426,0.20796387,96171.0,96168.0,0.09981783]
[1763284100765,0.08345499,96172.0,96168.0,0.32858232]
[1763284100968,0.08345499,96172.0,96169.0,0.02079672]
[1763284101305,0.08345499,96172.0,96171.0,0.20796289]
[1763284103261,0.08345499,96172.0,96171.0,0.20896289]
[1763284105144,0.08345499,96172.0,96171.0,0.20796289]
[1763284105344,0.08345499,96172.0,96171.0,0.20896289]
[1763284105789,0.08345499,96172.0,96171.0,0.20996289]
[1763284105988,0.08345499,96172.0,96171.0,0.20796289]
[1763284106187,0.08345499,96172.0,96171.0,0.20896289]
[1763284106399,0.08345499,96172.0,96171.0,0.20996289]
[1763284107145,0.08345499,96172.0,96171.0,0.002]
[1763284107287,0.29141572,96172.0,96171.0,0.002]
[1763284107628,0.08345499,96172.0,96171.0,0.20996289]
[1763284110681,0.08345499,96172.0,96171.0,0.002]
[1763284110882,0.29141572,96172.0,96171.0,0.002]
[1763284111484,0.29141572,96172.0,96171.0,0.001]
[1763284111837,0.29141572,96172.0,96171.0,0.002]
[1763284112060,0.29141572,96172.0,96171.0,0.001]
[1763284112446,0.29141572,96172.0,96171.0,0.002]
[1763284113861,0.08345499,96172.0,96171.0,0.002]
[1763284114103,0.29141572,96172.0,96171.0,0.002]
[1763284114462,0.08345499,96172.0,96171.0,0.002]
[1763284115783,0.29141572,96172.0,96171.0,0.002]
[1763284115986,0.08345499,96172.0,96171.0,0.20996289]
[1763284116208,0.08345499,96172.0,96171.0,0.002]
[1763284116838,0.08345499,96172.0,96171.0,0.20996289]
[1763284117238,0.08345499,96172.0,96171.0,0.002]
[1763284117878,0.08345499,96172.0,96171.0,0.20996289]
[1763284118610,0.08345499,96172.0,96171.0,0.002]
[1763284119239,0.29141572,96172.0,96171.0,0.002]
[1763284127691,0.08345499,96172.0,96171.0,0.002]
[1763284127867,0.08345499,96172.0,96171.0,0.23075917]
[1763284128003,0.08345499,96172.0,96171.0,0.20996289]
[1763284128210,0.08345499,96172.0,96171.0,0.23075917]
[1763284128882,0.08345499,96172.0,96171.0,0.22975917]
[1763284129089,0.08345499,96172.0,96171.0,0.20896289]
[1763284129434,0.08345499,96172.0,96171.0,0.20996289]
[1763284130134,0.08345499,96172.0,96171.0,0.20896289]
[1763284130342,0.08345499,96172.0,96171.0,0.20996289]
[1763284130743,0.08345499,96172.0,96171.0,0.002]
[1763284130911,0.29141572,96172.0,96171.0,0.002]
[1763284131301,0.08345499,96172.0,96171.0,0.002]
[1763284131683,0.08345499,96172.0,96171.0,0.20996289]
[1763284132119,0.08345499,96172.0,96171.0,0.002]
[1763284132341,0.29141572,96172.0,96171.0,0.002]
[1763284133487,0.20809572,96172.0,96171.0,0.002]
[1763284135914,0.22354572,96172.0,96171.0,0.002]
[1763284136492,0.22354572,96172.0,96171.0,0.001]
[1763284136699,0.20796722,96169.0,96168.0,0.09881783]
[1763284138562,0.20796722,96169.0,96168.0,0.09981783]
[1763284140647,0.22341722,96169.0,96168.0,0.09981783]
[1763284141768,0.22341722,96169.0,96168.0,0.001]
[1763284142212,0.5518514,96169.0,96168.0,0.001]
[1763284142645,0.58309559,96169.0,96168.0,0.001]
[1763284142860,0.20801913,96145.0,96144.0,0.09881783]
[1763284143044,0.20801913,96145.0,96129.0,0.09362468]
[1763284143045,0.20805159,96130.0,96129.0,0.09362468]
[1763284143308,0.23510913,96145.0,96129.0,0.09362468]
[1763284143309,0.20804967,96131.0,96129.0,0.09362468]
[1763284143754,0.20804967,96131.0,96130.0,0.00106177]
[1763284144177,0.20804967,96131.0,96130.0,0.001512]
[1763284145471,0.20801692,96147.0,96130.0,0.001512]
[1763284145684,0.20801481,96147.0,96146.0,0.09881783]
[1763284148897,0.20801481,96147.0,96146.0,0.09981783]
[1763284150864,0.20801481,96147.0,96146.0,0.10044588]
[1763284152694,0.21841089,96150.0,96146.0,0.10044588]
[1763284152695,0.20801264,96148.0,96146.0,0.10044588]
[1763284152911,0.20801481,96147.0,96146.0,0.09981783]
[1763284153144,0.20801264,96148.0,96146.0,0.09981783]
[1763284153385,0.20801481,96147.0,96146.0,0.09981783]
[1763284154055,0.20801481,96147.0,96146.0,0.09881783]
[1763284154257,0.20801481,96147.0,96146.0,0.09981783]
[1763284154465,0.20801264,96148.0,96146.0,0.09981783]
[1763284154694,0.20801481,96147.0,96146.0,0.09981783]
[1763284154817,0.20801481,96147.0,96146.0,0.09881783]
[1763284155239,0.20801481,96147.0,96146.0,0.09981783]
[1763284156984,0.20800583,96152.0,96148.0,0.20801169]
[1763284157186,0.25171701,96160.0,96147.0,0.20801281]
[1763284157359,0.08332,96151.0,96150.0,0.20800832]
[1763284157823,0.08332,96151.0,96149.0,0.20800838]
[1763284158047,0.08332,96151.0,96150.0,0.20800832]
[1763284158216,0.08332,96157.0,96146.0,0.09881783]
[1763284158415,0.08332,96157.0,96156.0,0.20799534]
[1763284159019,0.08332,96157.0,96155.0,0.20799705]
[1763284159249,0.08332,96157.0,96153.0,0.2080013]
[1763284159454,0.20799719,96156.0,96146.0,0.09881783]
[1763284159655,0.20799943,96155.0,96148.0,0.001]
[1763284159914,0.20799556,96156.0,96152.0,0.20800398]
[1763284160263,0.20799778,96155.0,96153.0,0.001]
[1763284160474,0.20799556,96156.0,96153.0,0.20900077]
[1763284160674,0.08332,96157.0,96156.0,0.20899534]
[1763284160993,0.08332,96157.0,96156.0,0.20799534]
[1763284162482,0.08332,96157.0,96156.0,0.001]
[1763284163091,0.08332,96157.0,96156.0,0.20899534]
[1763284163448,0.08332,96157.0,96156.0,0.20999534]
[1763284164907,0.08332,96157.0,96156.0,0.002]
[1763284165528,0.29131317,96157.0,96156.0,0.002]
[1763284168854,0.30791317,96157.0,96156.0,0.002]
[1763284169110,0.30791317,96157.0,96156.0,0.00235705]
[1763284169493,0.29131317,96157.0,96156.0,0.00235705]
[1763284169829,0.29131317,96157.0,96156.0,0.00135705]
[1763284170216,0.29131317,96157.0,96156.0,0.00035705]
[1763284172914,0.30642317,96157.0,96156.0,0.00035705]
[1763284180234,0.62942317,96157.0,96156.0,0.00035705]
[1763284180618,0.63485805,96157.0,96156.0,0.00035705]
[1763284187771,0.22853805,96157.0,96156.0,0.00035705]
[1763284187966,0.31185805,96157.0,96156.0,0.00035705]
[1763284196837,0.22853805,96157.0,96156.0,0.00035705]
[1763284197050,0.31185805,96157.0,96156.0,0.00035705]
[1763284198997,0.29674805,96157.0,96156.0,0.00035705]
[1763284199200,0.29131317,96157.0,96156.0,0.00035705]
[1763284199399,0.30642317,96157.0,96156.0,0.00035705]
[1763284201542,0.31185789,96157.0,96156.0,0.00035705]
[1763284201746,0.20804943,96131.0,96130.0,0.00045023]
[1763284201978,0.23652943,96131.0,96130.0,0.00045023]
[1763284202296,0.23652943,96131.0,96130.0,0.00115501]
[1763284203601,0.08332,96132.0,96130.0,0.00115501]
[1763284203860,0.08332,96132.0,96130.0,0.00145023]
[1763284204029,0.08332,96132.0,96131.0,0.20804943]
[1763284205471,0.08332,96132.0,96131.0,0.20904943]
[1763284206790,0.08332,96132.0,96131.0,0.001]
[1763284207003,0.08332,96132.0,96131.0,0.21004943]
[1763284207461,0.08332,96132.0,96131.0,0.002]
[1763284207671,0.29136726,96132.0,96131.0,0.002]
[1763284208114,0.08332,96132.0,96131.0,0.21004943]
[1763284208582,0.08332,96139.0,96131.0,0.002]
[1763284208740,0.08332,96139.0,96138.0,0.30685211]
[1763284210323,0.08332,96139.0,96138.0,0.30785211]
[1763284211218,0.08332,96139.0,96138.0,0.30885211]
[1763284211430,0.01039933,96160.0,96138.0,0.10081783]
[1763284211643,0.08332,96148.0,96147.0,0.20801481]
[1763284213446,0.08332,96148.0,96147.0,0.20901481]
[1763284214274,0.08332,96148.0,96147.0,0.21001481]
[1763284216240,0.08332,96148.0,96147.0,0.002]
[1763284216672,0.29133264,96148.0,96147.0,0.002]
[1763284217504,0.29133264,96148.0,96147.0,0.001]
[1763284218114,0.29133264,96148.0,96147.0,0.002]
[1763284218770,0.29133264,96148.0,96147.0,0.001]
[1763284218974,0.29133264,96148.0,96147.0,0.002]
[1763284221571,0.29133264,96148.0,96147.0,0.00224399]
[1763284224292,0.08332,96148.0,96147.0,0.2102588]
[1763284228383,0.08332,96148.0,96147.0,0.00224399]
[1763284228624,0.08332,96148.0,96147.0,0.2102588]
[1763284229469,0.08332,96148.0,96147.0,0.2092588]
[1763284230154,0.08332,96148.0,96147.0,0.2102588]
[1763284230728,0.08332,96148.0,96147.0,0.2092588]
[1763284230931,0.08332,96148.0,96147.0,0.2102588]
[1763284246776,0.29133264,96148.0,96147.0,0.00224399]
[1763284247571,0.29133264,96148.0,96147.0,0.00124399]
[1763284248188,0.29133264,96148.0,96147.0,0.00224399]
[1763284250737,0.08332,96148.0,96147.0,0.00224399]
[1763284250910,0.29133264,96148.0,96147.0,0.00224399]
[1763284251934,0.30714264,96148.0,96147.0,0.00224399]
[1763284258720,0.29133264,96148.0,96147.0,0.00224399]
[1763284259551,0.08332,96148.0,96147.0,0.00224399]
[1763284259869,0.29133264,96148.0,96147.0,0.00224399]
[1763284262295,0.08332,96148.0,96147.0,0.00224399]
[1763284262735,0.08332,96148.0,96147.0,0.2102588]
[1763284262945,0.20800797,96151.0,96147.0,0.2102588]
[1763284263147,0.29133264,96148.0,96147.0,0.00224399]
[1763284263943,0.29133264,96148.0,96147.0,0.00124399]
[1763284264146,0.29133264,96148.0,96147.0,0.00224399]
[1763284264496,0.29133264,96148.0,96147.0,0.00124399]
[1763284264720,0.29133264,96148.0,96147.0,0.00024399]
[1763284264899,0.29133264,96148.0,96147.0,0.00124399]
[1763284265317,0.20801264,96148.0,96147.0,0.00124399]
[1763284265666,0.29133264,96148.0,96147.0,0.00124399]
[1763284265864,0.29133264,96148.0,96147.0,0.00224399]
[1763284267623,0.24136324,96157.0,96147.0,0.00224399]
[1763284267766,0.08332,96148.0,96147.0,0.2102588]
[1763284268377,0.08332,96148.0,96147.0,0.2092588]
[1763284268784,0.08332,96148.0,96147.0,0.2102588]
[1763284270135,0.08332,96148.0,96147.0,0.00224399]
[1763284270602,0.08332,96148.0,96147.0,0.2102588]
[1763284272782,0.08332,96148.0,96147.0,0.00224399]
[1763284273526,0.29133264,96148.0,96147.0,0.00224399]
[1763284274581,0.30712264,96148.0,96147.0,0.00224399]
[1763284274787,0.30712264,96148.0,96147.0,0.00124399]
[1763284275197,0.30712264,96148.0,96147.0,0.00224399]
[1763284275710,0.30712264,96148.0,96147.0,0.00124399]
[1763284275913,0.30712264,96148.0,96147.0,0.00224399]
[1763284281931,0.08332,96148.0,96147.0,0.00224399]
[1763284282213,0.29133264,96148.0,96147.0,0.00224399]
[1763284282418,0.08332,96148.0,96147.0,0.00224399]
[1763284282871,0.29133264,96148.0,96147.0,0.00224399]
[1763284286901,0.08332,96148.0,96147.0,0.00224399]
[1763284287099,0.29133264,96148.0,96147.0,0.00224399]
[1763284290465,0.20801264,96148.0,96147.0,0.00224399]
[1763284290669,0.29133264,96148.0,96147.0,0.00224399]
[1763284297580,0.08332,96148.0,96147.0,0.2102588]
[1763284298559,0.29133264,96148.0,96147.0,0.00224399]
[1763284300461,0.08332,96148.0,96147.0,0.00224399]
[1763284300655,0.08332,96148.0,96147.0,0.2102588]
[1763284301411,0.08332,96148.0,96147.0,0.00224399]
[1763284301658,0.29133264,96148.0,96147.0,0.00224399]
[1763284303400,0.20801264,96148.0,96147.0,0.00224399]
[1763284303605,0.29133264,96148.0,96147.0,0.00224399]
[1763284308054,0.30705264,96148.0,96147.0,0.00224399]
[1763284338206,0.29133264,96148.0,96147.0,0.00224399]
[1763284339617,0.20801264,96148.0,96147.0,0.00224399]
[1763284340120,0.29132913,96150.0,96147.0,0.00224399]
[1763284340283,0.29132913,96150.0,96147.0,0.21025868]
[1763284340487,0.20801048,96149.0,96147.0,0.00224399]
[1763284340891,0.20801048,96149.0,96147.0,0.00124399]
[1763284341089,0.29132874,96150.0,96147.0,0.00124399]
[1763284341295,0.29132874,96150.0,96147.0,0.00224399]
[1763284341741,0.08332,96150.0,96147.0,0.00024399]
[1763284341949,0.08332,96150.0,96147.0,0.00124399]
[1763284342112,0.08332,96150.0,96147.0,0.00224399]
[1763284342295,0.08332,96150.0,96147.0,0.20925868]
[1763284342699,0.08332,96150.0,96147.0,0.21025868]
[1763284343143,0.20801048,96149.0,96147.0,0.00224399]
[1763284343356,0.08332,96150.0,96147.0,0.21025781]
[1763284343555,0.08332,96150.0,96148.0,0.20801242]
[1763284343907,0.29133034,96150.0,96147.0,0.2102586]
[1763284344110,0.08332,96150.0,96148.0,0.20801253]
[1763284344705,0.08332,96150.0,96149.0,0.20801048]
[1763284345874,0.08332,96150.0,96149.0,0.20901048]
[1763284346075,0.08332,96150.0,96149.0,0.21001048]
[1763284346869,0.08332,96150.0,96149.0,0.002]
[1763284347283,0.08332,96150.0,96149.0,0.21001048]
[1763284347494,0.08332,96150.0,96149.0,0.20901048]
[1763284347648,0.08332,96150.0,96148.0,0.20801189]
[1763284347853,0.29132832,96150.0,96149.0,0.001]
[1763284348056,0.29132832,96150.0,96149.0,0.002]
[1763284348472,0.29132832,96150.0,96149.0,0.001]
[1763284349283,0.20801264,96148.0,96147.0,0.00024399]
[1763284350541,0.22337264,96148.0,96147.0,0.00024399]
[1763284351165,0.22337264,96148.0,96147.0,0.00124399]
[1763284351313,0.22337264,96148.0,96147.0,0.00224399]
[1763284361769,0.25461855,96148.0,96147.0,0.00224399]
[1763284363177,0.25461855,96148.0,96147.0,0.00124399]
[1763284363381,0.25461855,96148.0,96147.0,0.00024399]
[1763284366119,0.23694943,96131.0,96130.0,0.00040224]
[1763284366747,0.23694943,96131.0,96130.0,0.00086308]
[1763284366956,0.26820361,96131.0,96130.0,0.00086308]
[1763284376165,0.32262361,96131.0,96130.0,0.00086308]
[1763284377483,0.23930361,96131.0,96130.0,0.00086308]
[1763284377691,0.32262361,96131.0,96130.0,0.00086308]
[1763284378305,0.32262361,96131.0,96130.0,0.00186308]
[1763284379584,0.03125418,96131.0,96130.0,0.00186308]
[1763284379803,0.08332,96131.0,96130.0,0.00186308]
[1763284380238,0.29136943,96131.0,96130.0,0.00186308]
[1763284380432,0.08332,96131.0,96130.0,0.00186308]
[1763284381038,0.29136943,96131.0,96130.0,0.00086308]
[1763284381482,0.08332,96131.0,96130.0,0.00186308]
[1763284381951,0.29136943,96131.0,96130.0,0.00086308]
[1763284382299,0.29136943,96131.0,96130.0,0.00186308]
[1763284382497,0.29136943,96131.0,96130.0,0.00286308]
[1763284382728,0.08332,96131.0,96130.0,0.21091467]
[1763284382932,0.29136523,96133.0,96130.0,0.00286308]
[1763284383048,0.08332,96133.0,96130.0,0.00240224]
[1763284383511,0.08332,96133.0,96131.0,0.20804925]
[1763284383729,0.29136332,96134.0,96130.0,0.2104538]
[1763284383932,0.08332,96134.0,96131.0,0.20804924]
[1763284384341,0.08332,96134.0,96133.0,0.2080451]
[1763284384570,0.08332,96134.0,96131.0,0.20804924]
[1763284385098,0.08332,96134.0,96132.0,0.20804718]
[1763284385723,0.08332,96134.0,96133.0,0.2080451]
[1763284386195,0.08332,96134.0,96130.0,0.00040224]
[1763284386409,0.08332,96134.0,96131.0,0.20804858]
[1763284386612,0.08332,96134.0,96132.0,0.001]
[1763284387244,0.29136362,96134.0,96132.0,0.001]
[1763284387443,0.08332,96134.0,96132.0,0.002]
[1763284387651,0.08332,96134.0,96132.0,0.001]
[1763284387805,0.08332,96134.0,96133.0,0.2080451]
[1763284388016,0.08332,96134.0,96133.0,0.2090451]
[1763284388220,0.08332,96134.0,96133.0,0.2080451]
[1763284388856,0.08332,96134.0,96133.0,0.2090451]
[1763284389358,0.08332,96134.0,96133.0,0.21042461]
[1763284390124,0.29136294,96134.0,96133.0,0.00237951]
[1763284390329,0.08332,96134.0,96133.0,0.00237951]
[1763284391033,0.08332,96134.0,96133.0,0.21042461]
[1763284391275,0.08332,96134.0,96133.0,0.00237951]
[1763284392823,0.08332,96134.0,96133.0,0.21042461]
[1763284395794,0.08332,96134.0,96133.0,0.00237951]
[1763284396172,0.29136294,96134.0,96133.0,0.00237951]
[1763284402934,0.29136294,96134.0,96133.0,0.00137951]
[1763284403266,0.29136294,96134.0,96133.0,0.00037951]
[1763284403883,0.08332,96134.0,96133.0,0.00037951]
[1763284404841,0.29136294,96134.0,96133.0,0.00037951]
[1763284405184,0.29136294,96134.0,96133.0,0.00137951]
[1763284406053,0.29136294,96134.0,96133.0,0.00237951]
[1763284413767,0.08332,96134.0,96133.0,0.00237951]
[1763284414118,0.08332,96134.0,96133.0,0.21042461]
[1763284415311,0.08332,96134.0,96133.0,0.00237951]
[1763284415751,0.08332,96134.0,96133.0,0.21042461]
[1763284418968,0.29136294,96134.0,96133.0,0.00237951]
[1763284419861,0.08332,96134.0,96133.0,0.00237951]
[1763284420089,0.24149886,96143.0,96133.0,0.00237951]
[1763284420213,0.08332,96139.0,96138.0,0.20803428]
[1763284420413,0.08332,96139.0,96138.0,0.20827827]
[1763284421571,0.08332,96139.0,96138.0,0.20927827]
[1763284421918,0.08332,96139.0,96138.0,0.20827827]
[1763284422320,0.08332,96139.0,96138.0,0.21127827]
[1763284422515,0.08332,96139.0,96138.0,0.21027827]
[1763284422997,0.08332,96139.0,96138.0,0.21127827]
[1763284427967,0.08332,96139.0,96138.0,0.00324399]
[1763284428335,0.08332,96139.0,96138.0,0.21127827]
[1763284444471,0.08332,96139.0,96138.0,0.00324399]
[1763284444667,0.08332,96139.0,96138.0,0.21127827]
[1763284445159,0.08332,96139.0,96138.0,0.21027827]
[1763284445650,0.08332,96139.0,96138.0,0.20827827]
[1763284446165,0.08332,96139.0,96138.0,0.20927827]
[1763284446523,0.08332,96139.0,96138.0,0.21027827]
[1763284448051,0.20801931,96145.0,96138.0,0.00224399]
[1763284448256,0.20801931,96145.0,96144.0,0.09881783]
[1763284449533,0.20801741,96146.0,96144.0,0.09881783]
[1763284449733,0.20801913,96145.0,96144.0,0.09881783]